bitfinex-derivatives/quotes_SOLF0:USTF0_20250312
["timestamp","ask_amount","ask_price","bid_price","bid_amount"]
[1741746051356,12.54214873,125.19,125.18,0.05782762]
[1741746053553,7.9892,125.19,125.18,0.05782762]
[1741746054648,12.54741982,125.19,125.18,0.05782762]
[1741746055760,4.55821982,125.19,125.18,0.05782762]
[1741746055958,31.82,125.2,125.18,0.05782762]
[1741746056360,7.9892,125.19,125.18,0.05782762]
[1741746058366,12.55108418,125.19,125.18,0.05782762]
[1741746058955,4.56188418,125.19,125.11,4.2215]
[1741746059157,26.82897051,125.16,125.07,2.0245]
[1741746059366,26.82897051,125.14,125.07,2.0245]
[1741746059564,26.82897051,125.12,125.05,35.9189]
[1741746059754,4.56188418,125.11,125.03,327.89236181]
[1741746059954,4.55644046,125.1,125.03,327.89236181]
[1741746060158,7.997,125.07,125.06,0.05199143]
[1741746060358,0.05463103,125.08,125.06,0.05199143]
[1741746060963,8.05133103,125.08,125.06,0.05199143]
[1741746061264,0.05463103,125.08,125.06,0.05199143]
[1741746062155,0.05463103,125.08,125.06,31.87199143]
[1741746065968,0.05463103,125.08,125.06,39.86949143]
[1741746067176,0.05463103,125.08,125.06,0.05199143]
[1741746068771,0.05463103,125.08,125.07,7.9969]
[1741746070272,31.84,125.14,125.06,31.89199143]
[1741746070477,4.54694086,125.13,125.06,31.84]
[1741746071080,31.84,125.15,125.06,31.84]
[1741746071280,4.54743139,125.14,125.06,58.66897051]
[1741746071476,0.05563154,125.12,125.09,0.06009216]
[1741746071680,0.05563154,125.12,125.1,7.9945]
[1741746071877,0.05563154,125.12,125.09,0.06009216]
[1741746072282,0.05563154,125.12,125.09,8.05519216]
[1741746072579,0.05563154,125.12,125.09,0.06009216]
[1741746073474,0.05563154,125.12,125.09,8.05519216]
[1741746074185,0.05563154,125.12,125.09,0.06009216]
[1741746075175,48.61043146,125.11,125.09,0.00175248]
[1741746075380,4.54714422,125.1,125.09,0.00175248]
[1741746075681,10.61016799,125.1,125.02,4.0494]
[1741746075882,16.77043146,125.08,125.02,4.0494]
[1741746076381,16.77043146,125.08,125.02,35.8894]
[1741746076581,0.05076987,125.06,125.04,0.05074074]
[1741746077380,16.82120133,125.06,125.04,0.05074074]
[1741746077683,7.9982,125.05,125.04,0.05074074]
[1741746078382,8.04876987,125.06,125.04,0.05074074]
[1741746078583,0.05076987,125.06,125.04,0.05074074]
[1741746079385,7.9982,125.05,125.04,0.05074074]
[1741746079585,0.05076987,125.06,125.04,0.05074074]
[1741746080780,8.04836987,125.06,125.04,0.05074074]
[1741746080989,0.05076987,125.06,125.04,0.05074074]
[1741746085190,7.9982,125.05,125.04,0.05074074]
[1741746085689,0.05076987,125.06,125.04,0.05074074]
[1741746085891,7.9982,125.05,125.04,0.05074074]
[1741746088188,26.87319979,125.05,124.97,6.227]
[1741746088385,26.87319979,125.03,124.94,31.84]
[1741746088586,58.71319979,125.03,124.94,31.84]
[1741746088892,58.71319979,125.03,124.97,8.0029]
[1741746089086,0.05454291,125.01,124.94,31.84]
[1741746089291,0.05454291,125.01,124.99,0.05464638]
[1741746092387,31.84,125.07,124.99,0.05464638]
[1741746092592,31.84,125.07,124.99,26.87319979]
[1741746092894,39.8374,125.07,125.03,7.9991]
[1741746093194,31.84,125.07,125.0,2.052]
[1741746093396,7.9976,125.06,125.02,7.9997]
[1741746093693,0.05345595,125.05,125.03,0.05309173]
[1741746093889,8.05185595,125.05,125.03,0.05309173]
[1741746094195,0.05345595,125.05,125.03,0.05309173]
[1741746094993,31.84,125.04,125.03,0.05309173]
[1741746095191,8.0009,125.01,124.97,31.84]
[1741746095490,31.84,125.04,124.94,4.2771]
[1741746095699,31.84,125.04,124.96,8.0036]
[1741746096486,0.06124687,125.01,124.99,0.05500406]
[1741746096891,8.06224687,125.01,124.99,0.05500406]
[1741746097191,0.06124687,125.01,124.99,0.05500406]
[1741746097495,8.06204687,125.01,124.99,0.05500406]
[1741746097998,0.06124687,125.01,124.99,0.05500406]
[1741746103196,0.06124687,125.01,124.99,8.05660406]
[1741746103399,0.06124687,125.01,124.99,0.05500406]
[1741746105202,8.06224687,125.01,124.99,0.05500406]
[1741746107300,0.06124687,125.01,125.0,8.0014]
[1741746107700,8.06214687,125.01,124.99,0.05500406]
[1741746108205,0.06124687,125.01,124.99,0.05500406]
[1741746108406,8.0014,125.0,124.99,0.05500406]
[1741746109402,12.54999451,125.0,124.99,0.05500406]
[1741746109802,12.54999451,125.0,124.9,6.4269]
[1741746109803,4.54859451,125.0,124.9,6.4269]
[1741746110001,36.38859451,124.99,124.9,38.2669]
[1741746110195,31.84,124.99,124.92,8.0061]
[1741746110505,31.84,124.99,124.9,38.2669]
[1741746110703,31.84,124.99,124.93,8.0053]
[1741746110904,0.05816128,124.96,124.93,8.06033296]
[1741746111100,0.05816128,124.96,124.93,0.05503296]
[1741746111406,0.05816128,124.96,124.94,8.0048]
[1741746111594,0.05816128,124.96,124.93,0.05503296]
[1741746111796,0.05816128,124.96,124.95,8.0046]
[1741746112104,31.84,125.02,124.93,58.76823275]
[1741746112306,31.84,125.02,124.93,58.71319979]
[1741746112506,31.84,125.02,124.99,8.002]
[1741746113207,31.84,125.02,125.0,8.0014]
[1741746113410,31.89533674,125.02,125.0,8.0014]
[1741746113703,31.89533674,125.02,124.99,0.05577787]
[1741746113903,31.89533674,125.02,124.99,8.05747787]
[1741746114411,8.0009,125.01,124.99,0.05577787]
[1741746114705,31.89533674,125.02,124.99,0.05577787]
[1741746115113,31.89533674,125.02,124.99,8.05737787]
[1741746115300,8.0011,125.01,124.99,0.05577787]
[1741746115501,31.89533674,125.02,124.99,0.05577787]
[1741746115700,31.89533674,125.02,124.99,8.05737787]
[1741746115905,31.89533674,125.02,124.99,0.05577787]
[1741746117603,39.89573674,125.02,124.99,0.05577787]
[1741746118198,8.0009,125.01,124.99,0.05577787]
[1741746118405,31.89533674,125.02,124.99,0.05577787]
[1741746119006,0.05533674,125.02,125.0,8.0014]
[1741746119405,0.05533674,125.02,124.99,0.05577787]
[1741746119605,12.55138052,125.01,124.99,0.05577787]
[1741746119798,8.0013,125.01,124.99,0.05577787]
[1741746120505,8.0014,125.0,124.99,0.05577787]
[1741746120707,4.55346484,125.0,124.99,0.05577787]
[1741746120911,0.05533674,125.02,124.99,0.05577787]
[1741746121204,4.55453079,125.01,124.99,0.05577787]
[1741746121409,4.55453079,125.0,124.99,0.05577787]
[1741746123004,8.05573674,125.02,124.99,8.05777787]
[1741746123307,4.55713261,125.01,124.99,8.05777787]
[1741746123503,0.05533674,125.02,124.99,0.05577787]
[1741746124113,0.05533674,125.02,124.99,8.05747787]
[1741746126412,0.05533674,125.02,124.99,0.05577787]
[1741746126615,4.56114133,125.01,124.99,0.05577787]
[1741746126811,8.05583674,125.02,124.99,0.05577787]
[1741746127117,4.56149567,125.01,124.99,0.05577787]
[1741746127318,8.0014,125.0,124.99,0.05577787]
[1741746127613,0.05533674,125.02,124.99,0.05577787]
[1741746127813,4.56180632,125.01,124.99,8.05757787]
[1741746128116,0.05533674,125.02,124.99,0.05577787]
[1741746128320,4.56195949,125.01,124.99,0.05577787]
[1741746128517,0.05533674,125.02,124.99,0.05577787]
[1741746128812,0.05533674,125.02,125.0,8.0012]
[1741746129315,8.05553674,125.02,124.99,8.05757787]
[1741746130411,8.05553674,125.02,124.99,0.05577787]
[1741746130610,8.05553674,125.02,124.99,8.05767787]
[1741746131111,0.05533674,125.02,124.99,8.05767787]
[1741746131312,0.05533674,125.02,124.99,0.05577787]
[1741746131920,0.05533674,125.02,125.0,8.0011]
[1741746133320,0.05533674,125.02,124.99,0.05577787]
[1741746133522,0.05533674,125.02,124.99,8.05757787]
[1741746134018,0.05533674,125.02,125.0,8.0013]
[1741746134720,0.05533674,125.02,125.01,8.0007]
[1741746135214,0.05533674,125.02,125.0,8.0012]
[1741746135420,0.05533674,125.02,124.99,2.19647787]
[1741746136423,0.05533674,125.02,124.99,10.19827787]
[1741746137226,0.05533674,125.02,124.99,2.19647787]
[1741746137827,0.05533674,125.02,125.0,8.0014]
[1741746138123,0.05533674,125.02,124.99,2.19647787]
[1741746138325,0.05533674,125.02,124.99,10.19827787]
[1741746139128,0.05533674,125.02,124.99,0.05577787]
[1741746139618,8.0011,125.01,124.99,0.05577787]
[1741746140025,0.05533674,125.02,124.99,0.05577787]
[1741746140225,0.05533674,125.02,124.99,8.05757787]
[1741746141217,0.05533674,125.02,124.99,0.05577787]
[1741746141618,4.56433695,125.01,124.99,0.05577787]
[1741746141925,8.0012,125.01,124.99,0.05577787]
[1741746142226,0.05533674,125.02,124.99,0.05577787]
[1741746142528,4.56450426,125.01,124.99,0.05577787]
[1741746142729,8.0007,125.01,124.99,0.05577787]
[1741746142930,0.05533674,125.02,124.99,8.05767787]
[1741746143232,4.56453713,125.01,124.99,0.05577787]
[1741746143422,0.05533674,125.02,125.01,8.0007]
[1741746143627,0.05533674,125.02,125.0,48.61871467]
[1741746143826,0.05533674,125.02,125.0,31.82]
[1741746144530,0.05533674,125.02,124.99,8.05737787]
[1741746146233,0.05533674,125.02,125.0,8.0013]
[1741746146629,0.05533674,125.02,125.0,16.79871467]
[1741746146940,0.05533674,125.02,125.01,8.0007]
[1741746147137,0.05533674,125.02,125.0,16.79871467]
[1741746148039,0.05533674,125.02,125.0,24.79981467]
[1741746148239,0.05533674,125.02,125.0,16.79871467]
[1741746148634,0.05533674,125.02,125.0,24.80001467]
[1741746148839,0.05533674,125.02,125.0,16.79871467]
[1741746150335,0.05533674,125.02,125.0,24.79981467]
[1741746151642,0.05533674,125.02,125.01,8.0007]
[1741746151834,33.8412,125.07,125.0,16.79871467]
[1741746151835,31.8,125.07,125.0,16.79871467]
[1741746152039,4.5606454,125.06,125.01,31.8]
[1741746152239,4.5606454,125.05,125.01,31.8]
[1741746152540,31.8,125.07,125.01,31.8]
[1741746152743,4.55971884,125.06,125.01,31.8]
[1741746152941,4.55971884,125.05,125.01,31.8]
[1741746153142,4.55971884,125.04,125.02,0.05956898]
[1741746153341,7.9993,125.04,125.02,0.05956898]
[1741746153544,0.05741078,125.05,125.02,0.05956898]
[1741746154046,8.05591078,125.05,125.02,8.05966898]
[1741746154742,4.55942222,125.04,125.02,8.05966898]
[1741746155041,8.05591078,125.05,125.02,8.05966898]
[1741746155242,4.55939465,125.04,125.02,8.05966898]
[1741746155445,8.05591078,125.05,125.02,8.05966898]
[1741746155640,12.55979584,125.04,125.02,0.05956898]
[1741746155843,0.05741078,125.05,125.02,0.05956898]
[1741746156043,4.56081781,125.04,125.02,0.05956898]
[1741746156245,7.9995,125.03,125.02,0.05956898]
[1741746156543,12.56246426,125.03,125.02,0.05956898]
[1741746158149,4.56296426,125.03,125.02,0.05956898]
[1741746158541,0.05741078,125.05,125.02,8.05966898]
[1741746158741,4.5654149,125.04,125.02,0.05956898]
[1741746159037,0.05741078,125.05,125.02,0.05956898]
[1741746159345,4.56662821,125.04,125.02,0.05956898]
[1741746159545,0.05741078,125.05,125.02,0.05956898]
[1741746159738,4.56672075,125.04,125.02,0.05956898]
[1741746159937,7.9988,125.04,125.02,0.05956898]
[1741746161146,4.56667999,125.03,125.02,0.05956898]
[1741746162046,7.9988,125.04,125.02,0.05956898]
[1741746162452,4.56945362,125.03,125.02,0.05956898]
[1741746163452,8.05591078,125.05,125.02,8.05966898]
[1741746163655,0.05741078,125.05,125.02,0.05956898]
[1741746164845,7.999,125.04,125.02,0.05956898]
[1741746166948,0.05741078,125.05,125.02,0.05956898]
[1741746167251,0.05741078,125.05,125.02,8.05946898]
[1741746168449,8.05611078,125.05,125.02,0.05956898]
[1741746169257,7.9989,125.04,125.02,0.05956898]
[1741746169955,0.05741078,125.05,125.02,0.05956898]
[1741746169956,8.05601078,125.05,125.02,0.05956898]
[1741746171756,0.05741078,125.05,125.02,0.05956898]
[1741746172358,0.05741078,125.05,125.04,10.7450996]
[1741746172559,4.63313666,125.05,125.03,10.7450996]
[1741746172757,4.57572588,125.04,125.03,10.7450996]
[1741746172960,0.05741078,125.05,125.03,10.7450996]
[1741746173459,0.05741078,125.05,125.04,10.7450996]
[1741746173660,4.63370102,125.05,125.04,18.7438996]
[1741746173861,0.05741078,125.05,125.04,18.7438996]
[1741746175555,0.05741078,125.05,125.04,42.5250996]
[1741746175758,8.05561078,125.05,125.04,31.78]
[1741746176063,0.05741078,125.05,125.04,31.78]
[1741746176761,8.05561078,125.05,125.04,31.78]
[1741746176962,0.05741078,125.05,125.04,31.78]
[1741746177158,4.63209974,125.05,125.02,0.05956898]
[1741746177466,15.31978856,125.04,125.02,0.05956898]
[1741746177755,15.31978856,125.03,125.02,0.00423224]
[1741746177961,15.31978856,125.03,124.96,10.7450996]
[1741746178161,10.7450996,125.0,124.95,10.7450996]
[1741746178353,4.57147209,124.99,124.95,10.7450996]
[1741746178555,8.0022,124.99,124.95,10.7450996]
[1741746179063,15.31612814,124.98,124.93,99.67670051]
[1741746179362,4.57102854,124.97,124.96,0.05539693]
[1741746180065,0.05745923,124.98,124.96,10.80049653]
[1741746180260,0.05745923,124.98,124.96,0.05539693]
[1741746180461,0.05745923,124.98,124.97,8.0033]
[1741746182268,0.05745923,124.98,124.96,8.05929693]
[1741746182567,0.05745923,124.98,124.96,0.05539693]
[1741746182765,0.05745923,124.98,124.97,8.0033]
[1741746183772,0.05745923,124.98,124.96,0.05539693]
[1741746184162,8.0033,124.97,124.96,0.05539693]
[1741746184363,0.05745923,124.98,124.96,0.05539693]
[1741746185264,8.0033,124.97,124.96,0.05539693]
[1741746185764,4.56037406,124.97,124.9,8.0076]
[1741746185963,4.0901,124.97,124.9,39.7876]
[1741746186164,4.55982298,124.96,124.89,54.92717835]
[1741746186771,8.0042,124.96,124.92,8.0059]
[1741746186971,0.05900962,124.94,124.92,8.0059]
[1741746187160,0.05900962,124.94,124.92,31.78]
[1741746187470,0.05900962,124.94,124.93,8.0059]
[1741746188066,0.05900962,124.94,124.93,24.80777835]
[1741746188370,4.0653,124.99,124.93,16.80187835]
[1741746188869,4.0653,124.99,124.95,8.0041]
[1741746189068,2.0776,124.99,124.93,16.80187835]
[1741746189469,0.05488804,124.97,124.95,8.0561645]
[1741746189669,0.05488804,124.97,124.95,0.0520645]
[1741746189870,0.05488804,124.97,124.95,8.0564645]
[1741746190166,0.05488804,124.97,124.95,0.0520645]
[1741746190468,16.80187835,124.96,124.87,144.31699805]
[1741746190669,8.0063,124.93,124.87,31.78]
[1741746191062,8.0063,124.93,124.88,8.0086]
[1741746191571,0.0554857,124.92,124.89,0.05921767]
[1741746193976,0.0554857,124.92,124.9,8.0075]
[1741746194176,0.0554857,124.92,124.89,0.05921767]
[1741746194377,0.0554857,124.92,124.8,256.90187835]
[1741746194378,16.80187835,124.9,124.82,16.80187835]
[1741746194677,16.80187835,124.88,124.81,31.78]
[1741746195271,16.80187835,124.86,124.78,220.66348737]
[1741746195472,16.80187835,124.86,124.81,0.04851416]
[1741746195774,0.05080376,124.83,124.82,8.0129]
[1741746195976,16.80187835,124.88,124.82,8.0129]
[1741746196177,0.05295082,124.84,124.83,8.0123]
[1741746196380,16.80187835,124.88,124.79,48.58187835]
[1741746196575,0.05929283,124.85,124.82,0.04851416]
[1741746196775,0.05929283,124.85,124.82,8.06101416]
[1741746196976,0.05929283,124.85,124.82,0.04851416]
[1741746197781,0.05929283,124.85,124.83,8.0118]
[1741746198378,0.05929283,124.85,124.82,8.06121416]
[1741746198984,0.05929283,124.85,124.82,0.04851416]
[1741746199687,0.05929283,124.85,124.83,8.0118]
[1741746200686,0.05929283,124.85,124.84,8.0116]
[1741746201180,0.05929283,124.85,124.82,0.04851416]
[1741746201390,0.05929283,124.85,124.84,8.0116]
[1741746204289,0.05929283,124.85,124.82,31.84851416]
[1741746205288,0.05929283,124.85,124.82,48.65039251]
[1741746205793,0.05929283,124.85,124.84,16.80187835]
[1741746206884,0.05929283,124.85,124.84,24.81347835]
[1741746207280,0.05929283,124.85,124.84,8.0116]
[1741746207491,0.05929283,124.85,124.82,48.65039251]
[1741746208486,0.05929283,124.85,124.84,24.81347835]
[1741746208784,2.136,124.92,124.84,16.80187835]
[1741746209091,1.9963,124.93,124.87,16.80187835]
[1741746209288,1.9963,124.93,124.87,48.60187835]
[1741746209787,0.0602182,124.91,124.89,0.05586858]
[1741746210181,0.0602182,124.91,124.9,8.0077]
[1741746210782,0.0602182,124.91,124.89,0.05586858]
[1741746211490,0.0602182,124.91,124.89,8.06396858]
[1741746211891,0.0602182,124.91,124.89,0.05586858]
[1741746213894,0.0602182,124.91,124.9,8.0078]
[1741746214093,0.0602182,124.91,124.89,0.05586858]
[1741746215587,0.0602182,124.91,124.9,8.0078]
[1741746218199,2.0398,124.98,124.89,16.85774693]
[1741746218387,2.0398,124.98,124.91,16.80187835]
[1741746218593,2.0398,124.98,124.91,48.60187835]
[1741746219292,2.0398,124.98,124.94,8.005]
[1741746219596,0.0556892,124.96,124.94,8.005]
[1741746222200,0.0556892,124.96,124.95,8.0046]
[1741746222400,0.0556892,124.96,124.93,0.05409428]
[1741746222802,0.0556892,124.96,124.94,8.0049]
[1741746224203,0.0556892,124.96,124.93,8.05979428]
[1741746224505,0.0556892,124.96,124.93,0.05409428]
[1741746224801,8.0052,124.94,124.9,8.0075]
[1741746225498,31.78,124.95,124.87,2.1809]
[1741746225698,31.78,124.95,124.88,16.80187835]
[1741746225899,0.05128525,124.92,124.9,0.05910347]
[1741746226100,0.05128525,124.92,124.91,8.0072]
[1741746227093,0.05128525,124.92,124.9,0.05910347]
[1741746227701,31.83128525,124.92,124.9,0.05910347]
[1741746228203,39.83818525,124.92,124.9,0.05910347]
[1741746228808,31.83128525,124.92,124.9,0.05910347]
[1741746229104,16.80187835,124.91,124.82,33.9076]
[1741746229300,16.80187835,124.89,124.84,8.0114]
[1741746229502,56.59077835,124.89,124.84,8.0114]
[1741746229805,48.58187835,124.89,124.84,8.0114]
[1741746230403,0.05585832,124.88,124.85,0.05482744]
[1741746230606,4.2299,124.88,124.75,4.2792]
[1741746230807,4.2299,124.88,124.77,8.0159]
[1741746230808,8.013,124.82,124.77,8.0159]
[1741746231105,48.58187835,124.84,124.77,8.0159]
[1741746231304,48.58187835,124.84,124.76,8.0166]
[1741746231305,8.0141,124.81,124.76,8.0166]
[1741746231502,48.58187835,124.84,124.76,16.80187835]
[1741746231702,31.78,124.84,124.76,16.80187835]
[1741746231904,0.05364192,124.81,124.76,16.80187835]
[1741746232405,0.05364192,124.81,124.75,21.08107835]
[1741746232806,0.05364192,124.81,124.75,52.86107835]
[1741746233204,0.05364192,124.81,124.75,36.0592]
[1741746233399,31.85364192,124.81,124.75,31.78]
[1741746233903,0.05364192,124.81,124.76,16.80187835]
[1741746234608,0.05364192,124.81,124.8,8.0142]
[1741746235406,0.05364192,124.81,124.8,24.81607835]
[1741746235710,31.8,124.87,124.8,16.80187835]
[1741746235906,112.18132686,124.91,124.85,16.80187835]
[1741746236310,112.18132686,124.91,124.88,8.0088]
[1741746236704,44.02549592,124.9,124.88,0.05364192]
[1741746236908,44.02549592,124.9,124.89,8.0084]
[1741746237313,44.02549592,124.9,124.88,8.06224192]
[1741746237613,0.05360908,124.9,124.88,0.05364192]
[1741746237911,0.05360908,124.9,124.88,8.06224192]
[1741746238714,0.05360908,124.9,124.88,0.05364192]
[1741746242429,0.05360908,124.9,124.89,8.0084]
[1741746242819,0.05360908,124.9,124.88,0.05364192]
[1741746243113,0.05360908,124.9,124.89,8.0084]
[1741746243320,0.05360908,124.9,124.88,0.05364192]
[1741746244622,0.05360908,124.9,124.88,8.06234192]
[1741746244826,0.05360908,124.9,124.88,0.05364192]
[1741746245617,0.05360908,124.9,124.89,8.0084]
[1741746246226,31.9,124.95,124.9,8.0077]
[1741746246616,31.9,124.95,124.88,26.9185413]
[1741746246824,8.0041,124.96,124.92,8.0065]
[1741746247131,31.94,124.98,124.91,31.96]
[1741746247326,0.0605817,124.95,124.93,0.05529495]
[1741746247824,8.0052,124.94,124.93,0.05529495]
[1741746248229,0.0605817,124.95,124.93,0.05529495]
[1741746248432,8.0655817,124.95,124.93,0.05529495]
[1741746248727,0.0605817,124.95,124.93,0.05529495]
[1741746250331,8.0653817,124.95,124.93,0.05529495]
[1741746250530,0.0605817,124.95,124.93,0.05529495]
[1741746252031,0.0605817,124.95,124.94,8.0052]
[1741746252335,0.0605817,124.95,124.93,0.05529495]
[1741746252636,0.0605817,124.95,124.93,8.06089495]
[1741746253136,0.0605817,124.95,124.93,0.05529495]
[1741746253841,0.0605817,124.95,124.93,8.06099495]
[1741746254431,0.0605817,124.95,124.94,8.0052]
[1741746254727,0.0605817,124.95,124.93,0.05529495]
[1741746255041,8.0052,124.94,124.93,0.05529495]
[1741746258740,12.53743781,124.94,124.93,0.05529495]
[1741746259132,8.0052,124.94,124.93,0.05529495]
[1741746259737,0.0605817,124.95,124.93,0.05529495]
[1741746261837,0.0605817,124.95,124.93,8.06079495]
[1741746263542,0.0605817,124.95,124.94,56.6044803]
[1741746263739,6.1284,125.01,124.94,48.5992803]
[1741746264041,12.53411427,125.0,124.96,8.0035]
[1741746264241,6.1284,125.01,124.94,48.5992803]
[1741746264542,4.53168414,125.0,124.94,56.6042803]
[1741746264847,8.003,124.98,124.96,0.05397899]
[1741746265847,0.05921523,124.99,124.96,0.05397899]
[1741746266038,8.06151523,124.99,124.96,0.05397899]
[1741746266345,0.05921523,124.99,124.96,0.05397899]
[1741746266945,8.0027,124.98,124.96,0.05397899]
[1741746267349,0.05921523,124.99,124.96,0.05397899]
[1741746267644,8.0033,124.97,124.96,0.05397899]
[1741746268442,8.0031,124.98,124.96,0.05397899]
[1741746268645,0.05921523,124.99,124.96,0.05397899]
[1741746269549,8.0033,124.97,124.96,0.05397899]
[1741746269748,0.05921523,124.99,124.96,0.05397899]
[1741746270147,8.003,124.98,124.96,0.05397899]
[1741746270750,0.05921523,124.99,124.96,0.05397899]
[1741746270949,8.0033,124.97,124.96,0.05397899]
[1741746276847,0.05921523,124.99,124.96,0.05397899]
[1741746277253,0.05921523,124.99,124.96,8.05777899]
[1741746277655,0.05921523,124.99,124.96,16.87325929]
[1741746277854,0.05921523,124.99,124.98,8.0027]
[1741746278348,0.05921523,124.99,124.97,31.78]
[1741746278349,0.05921523,124.99,124.97,39.783]
[1741746278656,0.05921523,124.99,124.97,31.78]
[1741746280056,0.05921523,124.99,124.97,39.7832]
[1741746280553,0.05921523,124.99,124.97,31.78]
[1741746281653,8.06171523,124.99,124.97,31.78]
[1741746282356,8.06171523,124.99,124.96,0.05397899]
[1741746282554,8.06171523,124.99,124.96,31.81397899]
[1741746282754,0.05921523,124.99,124.96,31.81397899]
[1741746284453,8.06161523,124.99,124.96,39.81737899]
[1741746284656,0.05921523,124.99,124.96,31.81397899]
[1741746285361,0.05921523,124.99,124.97,8.0029]
[1741746286561,8.06131523,124.99,124.97,31.76]
[1741746287060,8.0033,124.98,124.96,0.05397899]
[1741746288663,8.0033,124.97,124.96,0.05397899]
[1741746289154,0.05921523,124.99,124.96,0.05397899]
[1741746289765,8.06161523,124.99,124.96,0.05397899]
[1741746290257,0.05921523,124.99,124.96,0.05397899]
[1741746290460,0.05921523,124.99,124.97,31.76]
[1741746290963,8.06161523,124.99,124.97,31.76]
[1741746291162,0.05921523,124.99,124.97,31.76]
[1741746291349,0.05921523,124.99,124.97,39.7633]
[1741746291755,6.2261,125.05,124.98,16.8192803]
[1741746291959,7.9992,125.04,124.99,8.0016]
[1741746292257,6.2261,125.05,124.98,16.8192803]
[1741746292459,6.2261,125.05,125.0,16.8192803]
[1741746292652,6.2261,125.05,125.0,48.5792803]
[1741746292960,0.05556335,125.04,125.01,0.05360019]
[1741746293460,8.05456335,125.04,125.01,0.05360019]
[1741746293658,0.05556335,125.04,125.01,0.05360019]
[1741746294257,8.05486335,125.04,125.01,0.05360019]
[1741746295856,8.05486335,125.04,125.01,8.05430019]
[1741746296058,0.05556335,125.04,125.01,8.05430019]
[1741746296562,8.05446335,125.04,125.01,8.05430019]
[1741746296959,8.05446335,125.04,125.01,0.05360019]
[1741746297662,0.05556335,125.04,125.01,8.05390019]
[1741746298065,7.9995,125.03,125.01,0.05360019]
[1741746298567,0.05556335,125.04,125.01,0.05360019]
[1741746298866,8.05476335,125.04,125.01,0.05360019]
[1741746299067,0.05556335,125.04,125.01,0.05360019]
[1741746300367,8.05466335,125.04,125.01,0.05360019]
[1741746300956,7.9995,125.03,125.01,0.05360019]
[1741746301568,0.05556335,125.04,125.01,0.05360019]
[1741746301762,8.05476335,125.04,125.01,8.05430019]
[1741746301964,8.05476335,125.04,125.01,0.05360019]
[1741746303969,7.9996,125.03,125.01,0.05360019]
[1741746304168,0.05556335,125.04,125.01,0.05360019]
[1741746304571,7.9996,125.03,125.01,0.05360019]
[1741746304776,0.05556335,125.04,125.01,0.05360019]
[1741746305067,8.05466335,125.04,125.01,0.05360019]
[1741746305271,0.05556335,125.04,125.01,0.05360019]
[1741746306167,31.79556335,125.04,125.01,0.05360019]
[1741746306768,8.0001,125.02,125.01,0.05360019]
[1741746307272,31.79556335,125.04,125.01,0.05360019]
[1741746307477,7.9998,125.03,125.01,0.05360019]
[1741746309169,8.0001,125.02,125.01,0.05360019]
[1741746309375,0.05556335,125.04,125.01,0.05360019]
[1741746310279,8.0001,125.02,125.01,0.05360019]
[1741746311476,0.05556335,125.04,125.02,8.0]
[1741746311980,0.05556335,125.04,125.01,0.05360019]
[1741746312487,0.05556335,125.04,125.02,16.8192803]
[1741746312782,0.05556335,125.04,125.03,39.7395]
[1741746315377,0.05556335,125.04,125.03,31.74]
[1741746317782,0.05556335,125.04,125.03,39.7395]
[1741746318278,0.05556335,125.04,125.03,31.74]
[1741746318779,0.05556335,125.04,125.01,0.05360019]
[1741746319484,8.0001,125.02,125.01,0.05360019]
[1741746321282,0.05556335,125.04,125.01,0.05360019]
[1741746321488,7.9995,125.03,125.01,0.05360019]
[1741746322989,8.05466335,125.04,125.01,0.05360019]
[1741746323492,0.05556335,125.04,125.01,0.05360019]
[1741746323686,0.05556335,125.04,125.02,48.5592803]
[1741746328600,0.05556335,125.04,125.03,7.9995]
[1741746329694,0.05556335,125.04,125.01,0.05360019]
[1741746330296,4.55464771,125.03,125.01,0.05360019]
[1741746330598,4.55503381,125.02,125.01,0.05360019]
[1741746330792,12.55513381,125.02,125.01,0.05360019]
[1741746331298,8.0001,125.02,125.01,0.05360019]
[1741746331498,12.55619158,125.02,125.01,0.05360019]
[1741746332295,8.004,124.96,124.93,16.8192803]
[1741746332497,16.8192803,124.99,124.92,88.93160091]
[1741746332795,8.0046,124.95,124.92,31.72]
[1741746333499,8.05543622,124.95,124.92,31.77829834]
[1741746333696,0.05083622,124.95,124.92,31.77829834]
[1741746333904,8.0053,124.94,124.92,31.77829834]
[1741746334302,0.05083622,124.95,124.92,31.77829834]
[1741746334507,8.05583622,124.95,124.92,31.77829834]
[1741746334802,0.05083622,124.95,124.92,31.77829834]
[1741746334997,0.05083622,124.95,124.92,48.59757864]
[1741746335307,0.05083622,124.95,124.92,56.60387864]
[1741746335696,0.05083622,124.95,124.92,48.59757864]
[1741746336903,0.05083622,124.95,124.92,56.60397864]
[1741746337404,0.05083622,124.95,124.92,48.59757864]